bitfinex-derivatives/quotes_SOLF0:USTF0_20260114
["timestamp","ask_amount","ask_price","bid_price","bid_amount"]
[1768350886672,17.62109923,144.7,144.63,11.88749368]
[1768350886868,11.39799923,144.68,144.6,11.88749368]
[1768350887871,6.2248,144.66,144.6,11.88749368]
[1768350888472,6.2248,144.66,144.58,19.82904207]
[1768350888776,6.2248,144.66,144.59,11.88749368]
[1768350889373,17.62189923,144.68,144.6,1.71364839]
[1768350890374,6.2242,144.67,144.6,1.71364839]
[1768350890968,6.2242,144.67,144.6,13.60114207]
[1768350891174,11.39799923,144.68,144.6,19.82824207]
[1768350891374,11.39799923,144.68,144.61,11.88749368]
[1768350891971,11.39799923,144.68,144.61,13.60114207]
[1768350892171,11.39799923,144.68,144.61,11.88749368]
[1768350892485,17.62199923,144.68,144.61,11.88749368]
[1768350894278,11.39799923,144.66,144.56,1.71364839]
[1768350894472,13.11164762,144.65,144.56,1.71364839]
[1768350894775,11.39799923,144.65,144.56,13.60114207]
[1768350895980,6.2257,144.64,144.56,13.60114207]
[1768350896181,17.62369923,144.64,144.56,13.60114207]
[1768350897578,11.39799923,144.64,144.56,19.82994207]
[1768350898179,17.62349923,144.64,144.56,13.60114207]
[1768350900582,13.11164762,144.64,144.54,81.72]
[1768350900782,13.11164762,144.64,144.54,83.43364839]
[1768350901376,13.11164762,144.64,144.54,81.72]
[1768350901377,6.2272,144.6,144.54,81.72]
[1768350901576,11.39799923,144.61,144.54,81.72]
[1768350901782,13.11164762,144.59,144.49,13.60114207]
[1768350902283,11.39799923,144.59,144.5,1.71364839]
[1768350902483,11.39799923,144.58,144.5,7.94504839]
[1768350902681,11.39799923,144.58,144.52,1.71364839]
[1768350904280,11.39799923,144.58,144.51,7.94454839]
[1768350904480,11.39799923,144.58,144.51,1.71364839]
[1768350905088,17.62609923,144.58,144.51,1.71364839]
[1768350906289,10.98220432,144.57,144.49,81.74]
[1768350906489,10.98220432,144.57,144.49,1.71364839]
[1768350906990,10.98220432,144.54,144.48,1.71364839]
[1768350907788,17.21200432,144.54,144.48,1.71364839]
[1768350908592,17.21250432,144.53,144.46,83.45364839]
[1768350909092,6.2307,144.52,144.46,1.71364839]
[1768350910289,17.21290432,144.52,144.45,1.71364839]
[1768350911292,10.98220432,144.52,144.47,1.71364839]
[1768350912089,10.98220432,144.52,144.46,1.71364839]
[1768350912290,10.98220432,144.52,144.45,11.4296682]
[1768350912490,10.98220432,144.52,144.46,1.71364839]
[1768350912692,17.21280432,144.52,144.46,1.71364839]
[1768350912889,10.98220432,144.51,144.42,11.4296682]
[1768350913193,10.98220432,144.51,144.45,1.71364839]
[1768350913393,1.71364839,144.54,144.45,1.71364839]
[1768350913394,6.2305,144.53,144.45,1.71364839]
[1768350913593,10.98220432,144.53,144.47,1.71364839]
[1768350913989,10.98220432,144.51,144.44,1.71364839]
[1768350914490,6.2316,144.5,144.44,1.71364839]
[1768350914696,6.2316,144.5,144.42,11.4296682]
[1768350914885,6.2316,144.5,144.43,1.71364839]
[1768350915297,17.21410432,144.49,144.42,11.4296682]
[1768350915596,17.21410432,144.49,144.43,1.71364839]
[1768350916188,10.98220432,144.48,144.39,11.4296682]
[1768350916390,10.98220432,144.48,144.4,1.71364839]
[1768350916894,17.21470432,144.48,144.4,1.71364839]
[1768350917897,17.21470432,144.48,144.41,12.72806321]
[1768350919191,10.60051202,144.61,144.47,12.72806321]
[1768350919393,10.60051202,144.61,144.56,1.71364839]
[1768350919598,6.2261,144.63,144.56,1.71364839]
[1768350919794,10.60051202,144.65,144.56,1.71364839]
[1768350920488,10.60051202,144.65,144.57,1.71364839]
[1768350920489,10.60051202,144.64,144.57,1.71364839]
[1768350921290,10.60051202,144.64,144.55,11.01441482]
[1768350922700,6.2253,144.65,144.55,11.01441482]
[1768350924101,6.2253,144.65,144.56,11.01441482]
[1768350924499,10.60051202,144.67,144.57,11.01441482]
[1768350925797,10.60051202,144.67,144.58,6.2278]
[1768350926097,6.2235,144.69,144.59,11.01441482]
[1768350926299,6.2235,144.69,144.58,6.2278]
[1768350926300,6.2235,144.69,144.6,92.79441482]
[1768350927810,10.60051202,144.68,144.6,92.79441482]
[1768350928708,16.82311202,144.71,144.61,11.01441482]
[1768350928902,10.60051202,144.71,144.61,11.01441482]
[1768350930201,10.60051202,144.71,144.56,122.0543627]
[1768350930395,10.60051202,144.69,144.58,11.01441482]
[1768350930795,6.2239,144.68,144.58,11.01441482]
[1768350931104,10.60051202,144.67,144.58,11.01441482]
[1768350932808,16.82491202,144.67,144.58,11.01441482]
[1768350933607,10.60051202,144.66,144.58,11.01441482]
[1768350935409,10.26020471,144.64,144.52,11.0549718]
[1768350935603,10.26020471,144.64,144.52,92.7949718]
[1768350936902,10.26020471,144.62,144.52,99.0253718]
[1768350938110,10.26020471,144.6,144.52,92.7949718]
[1768350938308,10.26020471,144.6,144.5,17.2861718]
[1768350938509,10.26020471,144.6,144.51,11.0549718]
[1768350939205,10.26020471,144.6,144.5,87.9712]
[1768350939699,10.26020471,144.6,144.5,99.0261718]
[1768350939904,16.48760471,144.6,144.5,99.0261718]
[1768350941008,16.48760471,144.6,144.51,11.0549718]
[1768350942414,16.48760471,144.6,144.52,11.0549718]
[1768350942912,10.26020471,144.6,144.52,11.0549718]
[1768350944612,6.2268,144.61,144.52,11.0549718]
[1768350945420,16.48740471,144.6,144.52,11.0549718]
[1768350946321,6.2277,144.59,144.52,11.0549718]
[1768350947024,10.26020471,144.57,144.49,11.0549718]
[1768350947620,6.2289,144.56,144.49,11.0549718]
[1768350947817,10.26020471,144.57,144.47,81.76]
[1768350948018,10.26020471,144.57,144.47,92.8149718]
[1768350948420,6.229,144.56,144.47,92.8149718]
[1768350948721,6.229,144.56,144.47,11.0549718]
[1768350949327,6.2293,144.55,144.47,11.0549718]
[1768350951423,16.48950471,144.55,144.47,11.0549718]
[1768350951822,6.2304,144.53,144.47,11.0549718]
[1768350952224,10.26020471,144.55,144.47,11.0549718]
[1768350952425,16.48990471,144.55,144.47,11.0549718]
[1768350953727,6.2298,144.54,144.47,11.0549718]
[1768350955126,16.49000471,144.54,144.47,11.0549718]
[1768350955427,16.49000471,144.54,144.46,11.0549718]
[1768350955428,6.2306,144.52,144.46,11.0549718]
[1768350956031,6.2306,144.52,144.39,11.0549718]
[1768350956032,10.26020471,144.51,144.39,11.0549718]
[1768350956228,10.26020471,144.5,144.39,11.0549718]
[1768350957025,10.26020471,144.5,144.4,11.0549718]
[1768350957930,6.232,144.49,144.4,11.0549718]
[1768350958228,10.26020471,144.49,144.4,11.0549718]
[1768350958428,10.26020471,144.48,144.4,11.0549718]
[1768350959027,6.2333,144.46,144.4,11.0549718]
[1768350960425,16.49260471,144.48,144.4,11.0549718]
[1768350960824,10.26020471,144.47,144.39,11.0549718]
[1768350961931,16.49300471,144.47,144.39,11.0549718]
[1768350962235,10.26020471,144.47,144.39,11.0549718]
[1768350962921,10.26020471,144.5,144.39,11.0549718]
[1768350963421,10.26020471,144.5,144.39,13.74089241]
[1768350963624,10.26020471,144.5,144.4,11.0549718]
[1768350963821,10.26020471,144.53,144.44,11.0549718]
[1768350965030,16.49070471,144.53,144.44,11.0549718]
[1768350968830,10.64756677,144.52,144.44,11.0549718]
[1768350969135,10.64756677,144.51,144.42,10.14696416]
[1768350969935,16.87906677,144.5,144.42,10.14696416]
[1768350972137,10.64756677,144.49,144.39,19.06868477]
[1768350972333,10.64756677,144.49,144.39,100.88868477]
[1768350972533,10.64756677,144.49,144.39,91.96696416]
[1768350973032,10.64756677,144.49,144.38,2.68592061]
[1768350973234,96.9,144.56,144.43,2.68592061]
[1768350973538,96.9,144.56,144.44,12.83288477]
[1768350973931,96.8887,144.57,144.45,10.14696416]
[1768350974240,81.82,144.58,144.47,10.14696416]
[1768350974737,178.6953,144.59,144.47,10.14696416]
[1768350975238,10.64756677,144.58,144.47,10.14696416]
[1768350976035,6.2292,144.56,144.47,10.14696416]
[1768350976236,10.64756677,144.58,144.47,10.14696416]
[1768350976432,16.87566677,144.58,144.49,10.14696416]
[1768350976633,10.64756677,144.58,144.49,10.14696416]
[1768350976833,10.64756677,144.62,144.49,10.14696416]
[1768350977032,10.64756677,144.62,144.52,10.14696416]
[1768350977432,10.67855656,144.59,144.49,10.91753097]
[1768350978845,10.67855656,144.57,144.49,10.91753097]
[1768350979039,10.67855656,144.57,144.48,10.91753097]
[1768350979935,6.2292,144.56,144.48,10.91753097]
[1768350980740,16.90775656,144.56,144.48,10.91753097]
[1768350981443,72.24510772,144.58,144.48,10.91753097]
[1768350982938,6.2292,144.56,144.48,10.91753097]
[1768350986640,10.67855656,144.57,144.48,10.91753097]
[1768350986842,10.67855656,144.6,144.48,10.91753097]
[1768350987541,10.67855656,144.6,144.49,10.91753097]
[1768350987740,10.67855656,144.57,144.49,10.91753097]
[1768350990345,10.67855656,144.56,144.49,10.91753097]
[1768350991347,16.90755656,144.56,144.49,10.91753097]
[1768350991641,10.67855656,144.56,144.47,81.8]
[1768350991850,10.67855656,144.56,144.47,92.71753097]
[1768350992248,6.2294,144.55,144.47,92.71753097]
[1768350992447,6.2294,144.55,144.47,10.91753097]
[1768350994047,10.67855656,144.56,144.47,10.91753097]
[1768350994247,10.67855656,144.56,144.47,17.15013097]
[1768350994447,10.67855656,144.56,144.48,10.91753097]
[1768350994746,10.67855656,144.56,144.48,17.14973097]
[1768350995348,10.67855656,144.56,144.48,10.91753097]
[1768350996253,10.15033154,144.55,144.48,10.91753097]
[1768350997653,11.86788038,144.57,144.49,10.26707144]
[1768350997856,10.15033154,144.57,144.49,10.26707144]
[1768350998250,16.37893154,144.57,144.49,10.26707144]
[1768350998450,16.37893154,144.57,144.43,10.26707144]
[1768350998451,10.15033154,144.53,144.43,10.26707144]
[1768350998759,10.15033154,144.51,144.43,10.26707144]
[1768351000355,10.15033154,144.49,144.4,98.30247144]
[1768351000560,11.86788038,144.49,144.4,92.06707144]
[1768351000856,6.2328,144.47,144.4,92.06707144]
[1768351001053,11.86788038,144.49,144.4,92.06707144]
[1768351001360,11.86788038,144.49,144.41,10.26707144]
[1768351002252,1.71754884,144.51,144.43,10.26707144]
[1768351002560,11.86788038,144.51,144.43,10.26707144]
[1768351003060,11.86788038,144.49,144.4,11.98462028]
[1768351003358,11.86788038,144.49,144.4,10.26707144]
[1768351003561,11.86788038,144.49,144.4,11.98462028]
[1768351003858,6.2324,144.48,144.4,11.98462028]
[1768351004355,6.2318,144.5,144.42,11.98462028]
[1768351005057,107.03183154,144.58,144.49,10.26707144]
[1768351005257,10.15033154,144.57,144.49,10.26707144]
[1768351005455,6.2294,144.55,144.49,10.26707144]
[1768351006661,10.15033154,144.6,144.52,1.71754884]
[1768351007164,1.71754884,144.59,144.51,81.82]
[1768351007556,11.86788038,144.59,144.51,81.82]
[1768351007756,6.2281,144.58,144.51,81.82]
[1768351008061,11.86788038,144.59,144.51,10.26707144]
[1768351008260,16.37683154,144.62,144.51,10.26707144]
[1768351008460,10.15033154,144.62,144.54,11.98462028]
[1768351009063,16.37673154,144.62,144.54,11.98462028]
[1768351009263,16.37673154,144.62,144.54,10.26707144]
[1768351013360,10.15033154,144.65,144.56,10.26707144]
[1768351013667,10.15033154,144.68,144.56,10.26707144]
[1768351014161,10.15033154,144.65,144.56,10.26707144]
[1768351015361,10.15033154,144.63,144.53,16.49697144]
[1768351015561,10.15033154,144.63,144.54,92.06707144]
[1768351015755,10.15033154,144.63,144.54,10.26707144]
[1768351015964,10.15033154,144.63,144.54,92.04707144]
[1768351016166,10.15033154,144.63,144.51,96.9235]
[1768351016167,10.15033154,144.62,144.51,16.49787144]
[1768351016366,10.15033154,144.62,144.53,81.78]
[1768351016568,6.2269,144.61,144.53,92.04707144]
[1768351016762,6.2269,144.61,144.53,10.26707144]
[1768351018268,10.15033154,144.62,144.49,111.31518417]
[1768351018269,10.15033154,144.59,144.5,16.49817144]
[1768351018865,10.15033154,144.59,144.51,16.49797144]
[1768351019065,96.8569,144.62,144.52,10.26707144]
[1768351019066,10.15033154,144.62,144.52,10.26707144]
[1768351020171,6.2268,144.61,144.52,10.26707144]
[1768351020472,10.15033154,144.62,144.53,10.26707144]
[1768351021069,16.37683154,144.62,144.53,10.26707144]
[1768351021661,16.37683154,144.62,144.54,10.26707144]
[1768351021867,6.2257,144.64,144.54,10.26707144]
[1768351022264,16.37603154,144.64,144.54,10.26707144]
[1768351022565,10.15033154,144.62,144.52,20.26707144]
[1768351023773,6.2268,144.61,144.52,20.26707144]
[1768351024379,6.2268,144.61,144.53,10.26707144]
[1768351024976,10.15033154,144.62,144.53,16.49717144]
[1768351025182,6.2262,144.63,144.54,10.95449492]
[1768351025776,10.58699992,144.65,144.57,10.95449492]
[1768351026773,16.81219992,144.65,144.57,10.95449492]
[1768351027076,10.58699992,144.65,144.57,17.18279492]
[1768351027272,10.58699992,144.68,144.58,10.95449492]
[1768351028584,10.58699992,144.71,144.6,10.95449492]
[1768351029072,16.81119992,144.67,144.57,92.71449492]
[1768351029274,16.81119992,144.67,144.57,94.42960424]
[1768351029275,18.52630924,144.67,144.57,94.42960424]
[1768351029883,18.52630924,144.67,144.58,10.95449492]
[1768351030287,6.2247,144.66,144.58,10.95449492]
[1768351031386,6.2247,144.66,144.58,17.18299492]
[1768351031581,16.81169992,144.66,144.58,17.18299492]
[1768351032086,10.58699992,144.66,144.58,17.18299492]
[1768351034887,12.30210924,144.7,144.63,6.2264]
[1768351035283,10.58699992,144.7,144.63,6.2264]
[1768351035489,12.30210924,144.7,144.63,6.2264]
[1768351035685,10.58699992,144.7,144.63,6.2264]
[1768351035892,12.30210924,144.7,144.61,6.227]
[1768351036080,10.58699992,144.74,144.62,10.95449492]
[1768351036283,1.71510932,144.71,144.62,10.95449492]
[1768351036787,1.71510932,144.71,144.64,6.226]
[1768351037186,7.93830932,144.71,144.63,10.95449492]
[1768351038384,18.9138741,144.71,144.63,17.18089492]
[1768351039092,8.9138741,144.71,144.63,17.18089492]
[1768351039794,6.2232,144.71,144.64,11.00220144]
[1768351040688,1.71510932,144.72,144.65,17.22780144]
[1768351041291,7.93750932,144.73,144.65,17.22780144]
[1768351041887,7.93750932,144.73,144.66,6.2251]
[1768351043398,7.93750932,144.73,144.65,11.00220144]
[1768351044494,7.93750932,144.73,144.65,17.22780144]
[1768351045691,6.2224,144.73,144.65,17.22780144]
[1768351046097,6.2227,144.72,144.65,17.22780144]
[1768351047092,6.2227,144.72,144.62,178.6001]
[1768351047093,1.71510932,144.73,144.66,11.00220144]
[1768351047894,6.2227,144.72,144.66,11.00220144]
[1768351048593,12.43465366,144.72,144.63,11.00220144]
[1768351048900,10.71954434,144.72,144.63,11.00220144]
[1768351049100,12.45360409,144.71,144.63,11.00220144]
[1768351049300,18.67700409,144.71,144.63,11.00220144]
[1768351050701,12.45360409,144.71,144.63,11.00220144]
[1768351051700,10.73849477,144.71,144.63,11.00220144]
[1768351051992,12.45360409,144.71,144.63,11.00220144]
[1768351054303,10.73849477,144.71,144.63,11.00220144]
[1768351054500,12.54422123,144.74,144.66,11.00220144]
[1768351054805,1.71510932,144.76,144.66,11.00220144]
[1768351055098,12.5635709,144.76,144.67,11.24127953]
[1768351055505,10.84846158,144.76,144.67,11.24127953]
[1768351055901,12.5635709,144.76,144.67,11.24127953]
[1768351056407,17.0870536,144.75,144.67,11.24127953]
[1768351058003,10.88968113,144.74,144.66,6.225]
[1768351058616,10.88968113,144.72,144.61,11.24127953]
[1768351058818,10.88968113,144.72,144.62,11.24127953]
[1768351059107,10.88968113,144.72,144.64,17.46727953]
[1768351059305,10.88968113,144.72,144.64,11.24127953]
[1768351060609,10.88968113,144.72,144.65,6.2255]
[1768351062513,10.88968113,144.72,144.66,6.2251]
[1768351062713,2.67700397,144.74,144.64,11.24127953]
[1768351063110,13.5666851,144.74,144.64,11.24127953]
[1768351063917,13.5666851,144.74,144.67,6.2247]
[1768351064108,10.88968113,144.74,144.67,6.2247]
[1768351064305,10.88968113,144.74,144.66,11.24127953]
[1768351064614,10.88968113,144.74,144.68,6.2242]
[1768351065107,10.88968113,144.74,144.66,11.24127953]
[1768351065108,10.88968113,144.74,144.66,17.46607953]
[1768351066215,17.11168113,144.74,144.67,6.2247]
[1768351066814,6.2222,144.73,144.66,11.24127953]
[1768351067015,17.11188113,144.73,144.63,11.24127953]
[1768351067814,17.11188113,144.73,144.66,6.2251]
[1768351068611,17.11188113,144.73,144.65,17.46687953]
[1768351071408,10.88968113,144.73,144.66,17.46637953]
[1768351071911,10.88968113,144.76,144.67,11.24127953]
[1768351072310,308.16644224,144.78,144.71,6.223]
[1768351072510,308.16644224,144.78,144.71,17.46427953]
[1768351072511,226.44644224,144.78,144.71,17.46427953]
[1768351072814,17.10948113,144.79,144.71,17.46427953]
[1768351074016,10.88968113,144.79,144.71,11.24127953]
[1768351074717,6.2192,144.8,144.71,11.24127953]
[1768351075220,6.2197,144.79,144.71,17.46387953]
[1768351075413,17.10938113,144.79,144.71,11.24127953]
[1768351076014,10.88968113,144.79,144.71,11.24127953]
[1768351077927,10.88968113,144.79,144.73,6.2221]
[1768351079420,6.2192,144.8,144.73,17.46337953]
[1768351079723,13.5666851,144.82,144.73,17.46337953]
[1768351080325,6.2193,144.8,144.73,17.46337953]
[1768351081619,10.88968113,144.81,144.74,6.2217]
[1768351082224,6.2192,144.8,144.74,6.2217]
[1768351083932,17.10838113,144.81,144.74,6.2217]
[1768351084326,10.88968113,144.8,144.74,6.2217]
[1768351085532,11.29475808,144.83,144.75,16.77175525]
[1768351086532,93.00653718,144.85,144.75,10.55045525]
[1768351086738,11.30653718,144.85,144.75,10.55045525]
[1768351087024,11.30653718,144.85,144.77,10.55045525]
[1768351087634,178.3634,144.89,144.77,10.55045525]
[1768351087635,11.32964583,144.88,144.77,10.55045525]
[1768351088234,11.32964583,144.88,144.8,10.55045525]
[1768351088433,14.0066498,144.91,144.8,10.55045525]
[1768351088634,11.32964583,144.91,144.81,10.55045525]
[1768351089239,6.2152,144.9,144.81,10.55045525]
[1768351089440,17.55614194,144.9,144.81,10.55045525]
[1768351089931,17.55614194,144.9,144.82,6.2181]
[1768351090533,17.55614194,144.9,144.82,16.76855525]
[1768351090829,17.55614194,144.9,144.83,10.55045525]
[1768351091031,6.2143,144.92,144.83,10.55045525]
[1768351091339,14.04020111,144.93,144.83,10.55045525]
[1768351091934,6.2147,144.91,144.83,16.76815525]
[1768351092236,14.04020111,144.93,144.83,16.76815525]
[1768351092535,14.04020111,144.93,144.83,10.55045525]
[1768351092741,11.38488784,144.92,144.84,6.2173]
[1768351093236,8.89090397,144.93,144.79,96.7455]
[1768351093237,14.06189181,144.91,144.79,10.55045525]
[1768351093443,14.06189181,144.91,144.8,10.55045525]
[1768351095031,17.62160456,144.89,144.81,6.2184]
[1768351095236,11.40620456,144.88,144.81,6.2184]
[1768351096531,11.40620456,144.88,144.8,10.55045525]
[1768351096733,11.42730304,144.87,144.8,10.55045525]
[1768351097143,11.20534007,144.89,144.81,10.9771758]
[1768351097337,6.2152,144.9,144.81,10.9771758]
[1768351097642,11.20534007,144.91,144.81,10.9771758]
[1768351098238,11.20534007,144.91,144.83,6.2178]
[1768351098437,11.20534007,144.91,144.83,17.1949758]
[1768351099843,17.41994007,144.91,144.83,17.1949758]
[1768351100446,6.2138,144.93,144.85,10.9771758]
[1768351100640,17.41914007,144.93,144.85,10.9771758]
[1768351101042,11.20534007,144.92,144.85,10.9771758]
[1768351101844,13.88234404,144.94,144.85,10.9771758]
[1768351102346,11.20534007,144.93,144.86,6.2165]
[1768351104748,17.41904007,144.93,144.86,6.2165]
[1768351105644,17.41904007,144.93,144.86,17.1936758]
[1768351105851,17.41904007,144.93,144.82,99.40140397]
[1768351105852,11.20534007,144.95,144.88,6.2155]
[1768351106843,17.41814007,144.95,144.87,10.9771758]
[1768351107045,11.20534007,144.94,144.87,10.9771758]
[1768351107448,11.20534007,144.89,144.78,10.9771758]
[1768351107749,11.20534007,144.89,144.79,10.9771758]
[1768351108747,11.20534007,144.89,144.82,6.2182]
[1768351110352,17.42074007,144.89,144.81,10.9771758]
[1768351111751,17.42074007,144.89,144.81,17.1957758]
[1768351112555,6.2147,144.91,144.84,10.9771758]
[1768351113054,11.20534007,144.92,144.84,17.1945758]
[1768351113552,81.62,144.93,144.84,10.9771758]
[1768351113750,13.88234404,144.95,144.84,10.9771758]
[1768351114342,6.2137,144.93,144.85,6.217]
[1768351114655,6.2137,144.93,144.85,17.1941758]
[1768351115051,17.41844007,144.95,144.87,6.2159]
[1768351115543,17.41844007,144.95,144.88,6.2157]
[1768351116549,6.2121,144.97,144.89,17.02519817]
[1768351116755,6.2121,144.97,144.89,10.80999817]
[1768351118353,6.2121,144.97,144.89,17.02519817]
[1768351118547,10.89166378,144.98,144.89,10.80999817]
[1768351118748,10.89166378,144.98,144.89,13.48700214]
[1768351119356,10.89166378,144.98,144.89,10.80999817]
[1768351119550,10.89166378,144.98,144.91,12.51752227]
[1768351120747,10.89166378,144.98,144.91,18.73182227]
[1768351121459,12.59918788,144.98,144.88,10.80999817]
[1768351121657,12.59918788,144.97,144.88,10.80999817]
[1768351122861,18.81118788,144.97,144.88,17.02559817]
[1768351124070,12.59918788,144.95,144.88,10.80999817]
[1768351124362,12.59918788,144.95,144.87,81.6]
[1768351124864,12.59918788,144.95,144.87,87.816]
[1768351125269,12.59918788,144.95,144.87,98.62599817]
[1768351125467,12.59918788,144.95,144.88,10.80999817]
[1768351126767,10.89166378,144.95,144.88,10.80999817]
[1768351128474,10.89166378,144.98,144.89,12.51752227]
[1768351128773,10.89166378,144.98,144.91,12.51752227]
[1768351128973,6.2109,145.0,144.91,18.73182227]
[1768351129374,17.10256378,145.0,144.91,18.73182227]
[1768351129576,10.89166378,144.98,144.91,12.51752227]
[1768351129776,10.89166378,144.98,144.91,10.80999817]
[1768351130478,17.10316378,144.98,144.91,10.80999817]
[1768351131270,17.10316378,144.98,144.9,6.2148]
[1768351132376,17.10316378,144.98,144.9,17.02479817]
[1768351132877,17.10316378,144.98,144.91,10.80999817]
[1768351135480,17.10356378,144.97,144.9,6.2148]
[1768351136578,17.10356378,144.97,144.9,17.02479817]
[1768351137974,10.89166378,144.97,144.9,17.02479817]
[1768351139970,6.2115,144.98,144.91,17.02439817]
[1768351140871,1.7075241,144.99,144.91,17.02439817]
[1768351141281,12.59918788,144.99,144.91,17.02439817]
[1768351141977,18.81018788,144.99,144.92,6.214]
[1768351142178,18.81018788,144.99,144.92,17.02399817]
[1768351143484,6.2104,145.01,144.93,10.80999817]
[1768351143785,374.91349547,145.02,144.94,12.51752227]
[1768351143983,12.59918788,145.02,144.96,6.2122]
[1768351144283,1.7075241,145.04,144.96,10.80999817]
[1768351145086,6.2093,145.03,144.96,10.80999817]
[1768351146685,6.2093,145.03,144.96,17.02219817]
[1768351147085,6.2093,145.03,144.96,10.80999817]
[1768351148388,6.2093,145.03,144.96,17.02219817]
[1768351149986,11.4377539,145.04,144.96,17.02219817]
[1768351150186,7.9161241,145.05,144.97,12.86477847]
[1768351150392,7.9161241,145.05,144.98,11.15725437]
[1768351150587,87.7681,145.06,144.98,11.15725437]
[1768351150987,6.2081,145.06,144.98,11.15725437]
[1768351151397,17.66908125,145.07,145.0,11.15725437]
[1768351153700,11.46148125,145.07,145.0,17.36765437]
[1768351154102,7.9146241,145.09,145.01,11.15725437]
[1768351154302,6.2072,145.08,145.01,11.15725437]
[1768351154602,6.2072,145.08,145.01,17.36735437]
[1768351154806,11.48405383,145.09,145.01,19.07487847]
[1768351156001,17.69095383,145.09,145.01,19.07487847]
[1768351156194,13.19157793,145.09,144.99,98.92795437]
[1768351156396,13.19157793,145.09,144.99,100.63547847]
[1768351157805,6.2081,145.06,144.99,100.63547847]
[1768351159205,11.48986588,145.07,145.01,11.78935389]
[1768351159410,6.2075,145.08,145.01,11.78935389]
[1768351159706,1.7075241,145.09,145.01,11.78935389]
[1768351160102,13.20786839,145.09,145.01,11.78935389]
[1768351160295,13.20786839,145.09,145.01,17.99945389]
[1768351160296,17.70714429,145.09,145.01,17.99945389]
[1768351161605,6.2068,145.09,145.03,11.78935389]
[1768351161800,13.21801151,145.11,145.03,11.78935389]
[1768351163204,6.2073,145.08,145.0,13.49687799]
[1768351163397,13.22322641,145.11,145.0,11.78935389]
[1768351163600,13.22322641,145.07,144.98,1.7075241]
[1768351163797,13.22322641,145.07,144.97,93.30935389]
[1768351164105,6.2085,145.05,144.97,95.01687799]
[1768351165107,6.2085,145.05,144.98,18.00075389]
[1768351166901,11.53557445,145.1,145.01,11.78935389]
[1768351167107,13.24309855,145.1,145.01,11.78935389]
[1768351167308,13.24309855,145.1,145.01,13.49687799]
[1768351167907,6.2072,145.08,145.01,13.49687799]
[1768351169619,6.2072,145.08,145.01,19.70697799]
[1768351169821,11.53557445,145.1,145.02,11.78935389]
[1768351170915,6.207,145.09,145.02,11.78935389]
[1768351171912,6.207,145.09,145.01,7.9176241]
[1768351171913,13.26683956,145.09,145.0,11.78935389]
[1768351173715,6.2077,145.07,145.0,17.99985389]
[1768351176214,6.2081,145.06,145.0,11.78935389]
[1768351176709,13.26683956,145.09,145.0,11.78935389]
[1768351176909,13.26683956,145.09,144.95,96.6396]
[1768351176910,12.77640095,145.05,144.97,11.53501442]
[1768351177113,12.77640095,145.05,144.88,193.3719]
[1768351177114,11.06887685,145.02,144.93,11.53501442]
[1768351178816,6.2112,144.99,144.93,11.53501442]
[1768351179127,11.06887685,145.02,144.93,11.53501442]
[1768351181027,6.2105,145.01,144.93,11.53501442]
[1768351181828,6.2107,145.0,144.93,11.53501442]
[1768351187529,17.27897685,145.02,144.93,17.74851442]
[1768351187718,11.06887685,145.02,144.93,17.74851442]
[1768351188430,11.06887685,145.02,144.94,11.53501442]
[1768351188829,6.2102,145.01,144.94,11.53501442]
[1768351192925,11.06887685,145.02,144.95,11.53501442]
[1768351194430,17.27867685,145.02,144.95,11.53501442]
[1768351194631,11.06887685,145.02,144.95,11.53501442]
[1768351195932,6.2102,145.01,144.95,11.53501442]
[1768351199635,6.2097,145.03,144.95,11.53501442]
[1768351200135,6.2098,145.02,144.95,11.53501442]
[1768351200336,16.92899056,145.02,144.95,11.53501442]
[1768351203735,10.55698894,145.04,144.96,11.53501442]
[1768351203940,10.55698894,145.07,144.96,14.20216569]
[1768351204733,6.2081,145.06,144.99,17.74601442]
[1768351205226,6.2081,145.06,145.0,10.50660861]
[1768351205930,6.2085,145.05,144.97,98.25810861]
[1768351206139,6.2085,145.05,144.98,10.50660861]
[1768351207036,6.2085,145.05,144.98,16.71800861]
[1768351207238,6.2085,145.05,144.99,10.50660861]
[1768351207436,16.76498894,145.07,144.99,10.50660861]
[1768351207834,10.55698894,145.07,144.99,10.50660861]
[1768351209843,16.76468894,145.07,144.99,10.50660861]
[1768351211044,6.2081,145.06,144.99,10.50660861]
[1768351214343,16.37227786,145.05,144.99,10.50660861]
[1768351216746,10.06052329,145.04,144.97,92.04660861]
[1768351217349,6.2093,145.03,144.97,92.04660861]
[1768351218147,16.20369234,145.03,144.97,81.54]
[1768351218850,6.2098,145.02,144.95,10.80008607]
[1768351219352,9.99439234,145.03,144.95,17.01278607]
[1768351220549,6.2097,145.02,144.95,17.01278607]
[1768351221941,9.99439234,145.03,144.95,17.01278607]
[1768351222751,16.20369234,145.03,144.95,17.01278607]
[1768351222949,9.83322696,145.05,144.97,10.80008607]
[1768351223544,6.2089,145.04,144.98,10.80008607]